[Event "*** SCC Grand Prix: Titled Tuesday Blitz"]
[Site "Chess.com"]
[Date "2020.08.25"]
[Round "10"]
[White "kngopal"]
[Black "dolynachess"]
[Result "1-0"]
[WhiteElo "2310"]
[BlackElo "2419"]
[TimeControl "180+1"]
[EndTime "11:59:44 PDT"]
[Termination "kngopal won by resignation"]

1. c4 {[%clk 0:03:00.9]} 1... c5 {[%clk 0:02:59.5]} 2. Nf3 {[%clk 0:02:58.9]}
2... Nf6 {[%clk 0:03:00.4]} 3. g3 {[%clk 0:02:57.4]} 3... g6 {[%clk 0:03:01.3]}
4. Bg2 {[%clk 0:02:57.3]} 4... Bg7 {[%clk 0:03:02]} 5. Nc3 {[%clk 0:02:56.7]}
5... O-O {[%clk 0:03:02.9]} 6. a3 {[%clk 0:02:56.2]} 6... d5 {[%clk 0:03:00.5]}
7. cxd5 {[%clk 0:02:54.4]} 7... Nxd5 {[%clk 0:03:01.4]} 8. O-O {[%clk
0:02:53.7]} 8... Nc6 {[%clk 0:03:01.8]} 9. Qc2 {[%clk 0:02:42.7]} 9... Bg4
{[%clk 0:02:43.4]} 10. Nxd5 {[%clk 0:02:18.7]} 10... Qxd5 {[%clk 0:02:41.4]} 11.
h3 {[%clk 0:02:16.9]} 11... Bxf3 {[%clk 0:02:15.1]} 12. Bxf3 {[%clk 0:02:15.4]}
12... Qd6 {[%clk 0:02:15.6]} 13. Bxc6 {[%clk 0:02:02.4]} 13... Qxc6 {[%clk
0:02:14.2]} 14. d3 {[%clk 0:02:01.1]} 14... Rac8 {[%clk 0:02:12.4]} 15. Be3
{[%clk 0:01:59.2]} 15... Qb5 {[%clk 0:02:08]} 16. Rab1 {[%clk 0:01:52.1]} 16...
a5 {[%clk 0:02:03.2]} 17. Rfc1 {[%clk 0:01:46.2]} 17... a4 {[%clk 0:01:39.4]}
18. b3 {[%clk 0:01:36.8]} 18... axb3 {[%clk 0:01:35.9]} 19. Rxb3 {[%clk
0:01:36.1]} 19... Qa6 {[%clk 0:01:35.4]} 20. Qc4 {[%clk 0:01:25.9]} 20... Qa8
{[%clk 0:01:23.1]} 21. Bxc5 {[%clk 0:01:19.2]} 21... Rfd8 {[%clk 0:01:19]} 22.
Qb4 {[%clk 0:01:10.6]} 22... Bd4 {[%clk 0:00:58.4]} 23. Rc4 {[%clk 0:00:59.3]}
23... Bxc5 {[%clk 0:00:51.3]} 24. Rxc5 {[%clk 0:00:57.4]} 24... Rxc5 {[%clk
0:00:50.5]} 25. Qxc5 {[%clk 0:00:57.3]} 25... Rc8 {[%clk 0:00:44.2]} 26. Qxe7
{[%clk 0:00:52.7]} 26... b5 {[%clk 0:00:39.3]} 27. Qe4 {[%clk 0:00:43]} 27...
Qxe4 {[%clk 0:00:35.8]} 28. dxe4 {[%clk 0:00:42.5]} 28... Rc5 {[%clk 0:00:30.9]}
29. f4 {[%clk 0:00:39.5]} 29... Kg7 {[%clk 0:00:31.1]} 30. Kf2 {[%clk
0:00:39.2]} 30... Kf6 {[%clk 0:00:30.7]} 31. Ke3 {[%clk 0:00:38.7]} 31... Rc2
{[%clk 0:00:28.4]} 32. Kf3 {[%clk 0:00:32.3]} 32... Ra2 {[%clk 0:00:27.2]} 33.
e5+ {[%clk 0:00:30.5]} 33... Ke6 {[%clk 0:00:23.1]} 34. e3 {[%clk 0:00:28.5]}
34... h5 {[%clk 0:00:22.7]} 35. h4 {[%clk 0:00:27.5]} 35... Kf5 {[%clk
0:00:19.5]} 36. Rxb5 {[%clk 0:00:26.5]} 36... Rxa3 {[%clk 0:00:17.1]} 37. Rb6
{[%clk 0:00:26.6]} 1-0

[Event "*** SCC Grand Prix: Titled Tuesday Blitz"]
[Site "Chess.com"]
[Date "2020.08.25"]
[Round "10"]
[White "Ariadna_Atreides"]
[Black "niki_2003"]
[Result "1-0"]
[WhiteElo "2052"]
[BlackElo "1696"]
[TimeControl "180+1"]
[EndTime "11:59:44 PDT"]
[Termination "Ariadna_Atreides won by resignation"]

1. d4 {[%clk 0:02:52.2]} 1... Nf6 {[%clk 0:02:59.4]} 2. Nf3 {[%clk 0:02:51.4]}
2... e6 {[%clk 0:02:58.6]} 3. e3 {[%clk 0:02:51]} 3... b6 {[%clk 0:02:58.1]} 4.
Bd3 {[%clk 0:02:50.1]} 4... Bb7 {[%clk 0:02:58.3]} 5. O-O {[%clk 0:02:50.1]}
5... d6 {[%clk 0:02:57.4]} 6. b3 {[%clk 0:02:48.9]} 6... Nbd7 {[%clk 0:02:58.1]}
7. Bb2 {[%clk 0:02:49]} 7... c5 {[%clk 0:02:57.6]} 8. Nbd2 {[%clk 0:02:48.2]}
8... Be7 {[%clk 0:02:56.3]} 9. c4 {[%clk 0:02:43.9]} 9... O-O {[%clk 0:02:54.6]}
10. Rc1 {[%clk 0:02:43.9]} 10... Rc8 {[%clk 0:02:52.9]} 11. Bb1 {[%clk
0:02:43.2]} 11... Ba6 {[%clk 0:02:51.8]} 12. Ne4 {[%clk 0:02:36.8]} 12... d5
{[%clk 0:02:48.8]} 13. cxd5 {[%clk 0:02:29.7]} 13... Bxf1 {[%clk 0:02:45.2]} 14.
dxe6 {[%clk 0:02:22]} 14... Nxe4 {[%clk 0:02:08.6]} 15. exd7 {[%clk 0:02:03.6]}
15... Qxd7 {[%clk 0:02:07.8]} 16. Qxf1 {[%clk 0:01:55.9]} 16... Nf6 {[%clk
0:02:04.9]} 17. Ne5 {[%clk 0:01:50.9]} 17... Qe6 {[%clk 0:02:00.4]} 18. Nf3
{[%clk 0:01:24.5]} 18... cxd4 {[%clk 0:01:46.7]} 19. Nxd4 {[%clk 0:01:23.7]}
19... Rxc1 {[%clk 0:01:45]} 20. Qxc1 {[%clk 0:01:19.2]} 20... Qd7 {[%clk
0:01:35.6]} 21. Nf5 {[%clk 0:01:08.7]} 21... Rd8 {[%clk 0:01:30]} 22. Nxe7+
{[%clk 0:00:59.4]} 22... Qxe7 {[%clk 0:01:29.4]} 23. Qc2 {[%clk 0:00:55.1]}
23... Qd6 {[%clk 0:01:26.4]} 24. Bd4 {[%clk 0:00:52.6]} 24... g6 {[%clk
0:01:14.9]} 25. h3 {[%clk 0:00:48.1]} 25... Nd5 {[%clk 0:01:08.3]} 26. Qb2
{[%clk 0:00:43.3]} 26... Nb4 {[%clk 0:00:45.7]} 27. a3 {[%clk 0:00:41.5]} 27...
Nc6 {[%clk 0:00:41.8]} 28. Bh8 {[%clk 0:00:32.4]} 28... f6 {[%clk 0:00:26.7]}
29. Bxf6 {[%clk 0:00:28.1]} 29... Rf8 {[%clk 0:00:24]} 30. Bc3 {[%clk 0:00:22]}
30... Qd1+ {[%clk 0:00:22.6]} 31. Kh2 {[%clk 0:00:21]} 31... Qf1 {[%clk
0:00:22.3]} 32. b4 {[%clk 0:00:17.9]} 32... Qxf2 {[%clk 0:00:16.7]} 33. Ba2+
{[%clk 0:00:17.5]} 33... Rf7 {[%clk 0:00:14.7]} 34. Qxf2 {[%clk 0:00:17.4]} 1-0

[Event "*** SCC Grand Prix: Titled Tuesday Blitz"]
[Site "Chess.com"]
[Date "2020.08.25"]
[Round "10"]
[White "ChessicallyInclined"]
[Black "Bastiandash"]
[Result "1-0"]
[WhiteElo "2514"]
[BlackElo "2384"]
[TimeControl "180+1"]
[EndTime "11:59:45 PDT"]
[Termination "ChessicallyInclined won by checkmate"]

1. d4 {[%clk 0:02:59.6]} 1... Nf6 {[%clk 0:02:58.9]} 2. c4 {[%clk 0:02:59.3]}
2... e6 {[%clk 0:02:58.2]} 3. Nc3 {[%clk 0:02:59.9]} 3... Bb4 {[%clk 0:02:58.4]}
4. e3 {[%clk 0:02:59.9]} 4... O-O {[%clk 0:02:57.3]} 5. Ne2 {[%clk 0:03:00.4]}
5... Re8 {[%clk 0:02:57.5]} 6. a3 {[%clk 0:02:58.9]} 6... Bf8 {[%clk 0:02:58]}
7. Ng3 {[%clk 0:02:57.5]} 7... d5 {[%clk 0:02:56.7]} 8. Be2 {[%clk 0:02:51.6]}
8... c5 {[%clk 0:02:48.3]} 9. dxc5 {[%clk 0:02:50.9]} 9... Bxc5 {[%clk
0:02:47.1]} 10. cxd5 {[%clk 0:02:41.7]} 10... exd5 {[%clk 0:02:45.1]} 11. b4
{[%clk 0:02:31.2]} 11... Bb6 {[%clk 0:02:36.2]} 12. Na4 {[%clk 0:02:22.9]} 12...
Bc7 {[%clk 0:02:35.7]} 13. Bb2 {[%clk 0:02:14.1]} 13... Nc6 {[%clk 0:02:35.5]}
14. O-O {[%clk 0:02:13.3]} 14... Be6 {[%clk 0:02:20.6]} 15. Nc5 {[%clk
0:02:03.8]} 15... Rb8 {[%clk 0:02:08.6]} 16. Rc1 {[%clk 0:02:00.1]} 16... Qd6
{[%clk 0:01:58.3]} 17. Bxf6 {[%clk 0:01:54.4]} 17... gxf6 {[%clk 0:01:56.7]} 18.
Bd3 {[%clk 0:01:42.3]} 18... d4 {[%clk 0:01:51.9]} 19. Qh5 {[%clk 0:01:31.8]}
19... Kf8 {[%clk 0:01:33.8]} 20. Qh6+ {[%clk 0:01:14.6]} 20... Ke7 {[%clk
0:01:25]} 21. exd4 {[%clk 0:01:14.4]} 21... Nxd4 {[%clk 0:01:15]} 22. Rfe1
{[%clk 0:01:12.2]} 22... b6 {[%clk 0:00:41.6]} 23. Nxe6 {[%clk 0:01:02.1]} 23...
fxe6 {[%clk 0:00:42.5]} 24. Qxh7+ {[%clk 0:00:53.5]} 24... Kd8 {[%clk
0:00:42.3]} 25. Bg6 {[%clk 0:00:49.9]} 25... Rf8 {[%clk 0:00:36.7]} 26. Ne4
{[%clk 0:00:46.9]} 26... Qd7 {[%clk 0:00:35.3]} 27. Qh6 {[%clk 0:00:43.5]} 27...
Qe7 {[%clk 0:00:22.4]} 28. Red1 {[%clk 0:00:41.7]} 28... e5 {[%clk 0:00:21.8]}
29. Bf5 {[%clk 0:00:37.5]} 29... Bd6 {[%clk 0:00:19.2]} 30. Rxd4 {[%clk
0:00:34]} 30... exd4 {[%clk 0:00:16]} 31. Rc6 {[%clk 0:00:34.6]} 31... Bc7
{[%clk 0:00:12.7]} 32. Re6 {[%clk 0:00:24]} 32... Qf7 {[%clk 0:00:06.9]} 33.
Rxf6 {[%clk 0:00:20.6]} 33... Qxf6 {[%clk 0:00:07.5]} 34. Nxf6 {[%clk 0:00:20]}
34... Ke7 {[%clk 0:00:07.2]} 35. Nd5+ {[%clk 0:00:17.8]} 35... Kf7 {[%clk
0:00:06.3]} 36. Qg6# {[%clk 0:00:16.4]} 1-0

[Event "*** SCC Grand Prix: Titled Tuesday Blitz"]
[Site "Chess.com"]
[Date "2020.08.25"]
[Round "10"]
[White "MF1966Idrisov"]
[Black "chesslh19"]
[Result "1-0"]
[WhiteElo "2365"]
[BlackElo "2210"]
[TimeControl "180+1"]
[EndTime "11:59:45 PDT"]
[Termination "MF1966Idrisov won by resignation"]

1. Nf3 {[%clk 0:03:00.9]} 1... Nf6 {[%clk 0:02:59.4]} 2. b3 {[%clk 0:03:00.7]}
2... g6 {[%clk 0:02:42.7]} 3. Bb2 {[%clk 0:02:59.4]} 3... Bg7 {[%clk 0:02:43.6]}
4. c4 {[%clk 0:02:59.4]} 4... O-O {[%clk 0:02:36.7]} 5. g3 {[%clk 0:02:59.2]}
5... b6 {[%clk 0:02:32.3]} 6. Bg2 {[%clk 0:02:58.5]} 6... Bb7 {[%clk 0:02:32.4]}
7. O-O {[%clk 0:02:58.5]} 7... c5 {[%clk 0:02:31.8]} 8. d4 {[%clk 0:02:55.4]}
8... cxd4 {[%clk 0:02:31.4]} 9. Nxd4 {[%clk 0:02:55.2]} 9... Bxg2 {[%clk
0:02:28.2]} 10. Kxg2 {[%clk 0:02:55.3]} 10... Nc6 {[%clk 0:02:21.6]} 11. Nc3
{[%clk 0:02:55]} 11... Nxd4 {[%clk 0:02:14.2]} 12. Qxd4 {[%clk 0:02:54.1]} 12...
Qc7 {[%clk 0:02:12.2]} 13. Nd5 {[%clk 0:02:48.6]} 13... Qb7 {[%clk 0:02:04.3]}
14. e4 {[%clk 0:02:38]} 14... d6 {[%clk 0:01:53.6]} 15. Rae1 {[%clk 0:02:06.9]}
15... Rad8 {[%clk 0:00:24.5]} 16. Qd2 {[%clk 0:02:00.5]} 16... Nxd5 {[%clk
0:00:19.2]} 17. Bxg7 {[%clk 0:01:54.7]} 17... Ne3+ {[%clk 0:00:15.4]} 18. Qxe3
{[%clk 0:01:44.8]} 18... Kxg7 {[%clk 0:00:16.3]} 19. Rd1 {[%clk 0:01:44.3]}
19... Qc6 {[%clk 0:00:13.8]} 20. Rd5 {[%clk 0:01:40.5]} 20... e6 {[%clk
0:00:11.5]} 21. Rd3 {[%clk 0:01:39.5]} 21... Rd7 {[%clk 0:00:10.3]} 22. Rfd1
{[%clk 0:01:38.2]} 22... Rfd8 {[%clk 0:00:10.1]} 23. Kh3 {[%clk 0:01:35.7]}
23... Qc5 {[%clk 0:00:08]} 24. Qf3 {[%clk 0:01:33.3]} 24... Qe5 {[%clk 0:00:07]}
25. Qf4 {[%clk 0:01:29.6]} 25... Qxf4 {[%clk 0:00:06.1]} 26. gxf4 {[%clk
0:01:29.4]} 26... f6 {[%clk 0:00:05.2]} 27. Kg4 {[%clk 0:01:28.9]} 27... Kf7
{[%clk 0:00:05.2]} 28. h4 {[%clk 0:01:25.1]} 28... Ke7 {[%clk 0:00:05.1]} 29. h5
{[%clk 0:01:25]} 29... Re8 {[%clk 0:00:04]} 30. Rh3 {[%clk 0:01:22.7]} 30... Rg8
{[%clk 0:00:03.5]} 31. hxg6 {[%clk 0:01:20.5]} 31... Rxg6+ {[%clk 0:00:03.5]}
32. Kf3 {[%clk 0:01:20.5]} 32... Rg7 {[%clk 0:00:03.7]} 33. Rdh1 {[%clk
0:01:18.8]} 33... Kf8 {[%clk 0:00:03.4]} 34. Rh6 {[%clk 0:01:18.8]} 34... Kg8
{[%clk 0:00:03]} 35. Rxf6 {[%clk 0:01:18.1]} 35... d5 {[%clk 0:00:03.6]} 36.
cxd5 {[%clk 0:01:09.9]} 36... exd5 {[%clk 0:00:04.5]} 37. e5 {[%clk 0:01:10.2]}
37... d4 {[%clk 0:00:04.3]} 38. Rd1 {[%clk 0:01:10]} 38... d3 {[%clk 0:00:03.4]}
39. Rd2 {[%clk 0:01:10.1]} 39... h5 {[%clk 0:00:02.8]} 40. Rf5 {[%clk
0:01:08.3]} 40... Rh7 {[%clk 0:00:02.6]} 41. Kg3 {[%clk 0:01:04.4]} 41... h4+
{[%clk 0:00:02.6]} 42. Kh3 {[%clk 0:01:04.4]} 42... Rdf7 {[%clk 0:00:02]} 43.
Rxf7 {[%clk 0:01:01.4]} 43... Kxf7 {[%clk 0:00:02.9]} 44. Rxd3 {[%clk
0:01:00.1]} 44... Ke6 {[%clk 0:00:03.6]} 45. Rd6+ {[%clk 0:00:57.8]} 45... Kf5
{[%clk 0:00:03.6]} 46. Rf6+ {[%clk 0:00:57.7]} 46... Ke4 {[%clk 0:00:03.9]} 47.
e6 {[%clk 0:00:57.4]} 47... Kf3 {[%clk 0:00:03.3]} 48. f5 {[%clk 0:00:55.4]}
48... Kxf2 {[%clk 0:00:02.7]} 49. Rf7 {[%clk 0:00:55.1]} 49... Rh8 {[%clk
0:00:01.7]} 50. e7 {[%clk 0:00:55]} 50... Re8 {[%clk 0:00:01.8]} 51. f6 {[%clk
0:00:54.3]} 51... Kf3 {[%clk 0:00:02.3]} 52. Rf8 {[%clk 0:00:53.3]} 1-0

[Event "*** SCC Grand Prix: Titled Tuesday Blitz"]
[Site "Chess.com"]
[Date "2020.08.25"]
[Round "10"]
[White "Mbneu"]
[Black "Chessbard1972"]
[Result "1-0"]
[WhiteElo "2258"]
[BlackElo "2387"]
[TimeControl "180+1"]
[EndTime "11:59:46 PDT"]
[Termination "Mbneu won by resignation"]

1. d4 {[%clk 0:03:00.9]} 1... Nf6 {[%clk 0:02:55.5]} 2. c4 {[%clk 0:03:01.3]}
2... g6 {[%clk 0:02:55.4]} 3. Nc3 {[%clk 0:03:00.5]} 3... Bg7 {[%clk 0:02:55.5]}
4. e4 {[%clk 0:02:59.2]} 4... d6 {[%clk 0:02:55.4]} 5. f4 {[%clk 0:02:59.7]}
5... O-O {[%clk 0:02:54.3]} 6. Nf3 {[%clk 0:03:00.2]} 6... c5 {[%clk 0:02:53.8]}
7. d5 {[%clk 0:03:00.3]} 7... Bg4 {[%clk 0:02:53.4]} 8. Be2 {[%clk 0:02:58.3]}
8... e6 {[%clk 0:02:51.8]} 9. dxe6 {[%clk 0:02:57.7]} 9... Bxe6 {[%clk 0:02:50]}
10. O-O {[%clk 0:02:52]} 10... a6 {[%clk 0:02:48.5]} 11. Ng5 {[%clk 0:02:42.8]}
11... Bc8 {[%clk 0:02:44.6]} 12. f5 {[%clk 0:02:39.9]} 12... Nc6 {[%clk
0:02:40.5]} 13. fxg6 {[%clk 0:02:38.9]} 13... hxg6 {[%clk 0:02:38.3]} 14. Qe1
{[%clk 0:02:34.8]} 14... Nh7 {[%clk 0:02:34.5]} 15. Qh4 {[%clk 0:02:27.7]} 15...
Nxg5 {[%clk 0:02:33.8]} 16. Bxg5 {[%clk 0:02:28.1]} 16... f6 {[%clk 0:02:32.6]}
17. Be3 {[%clk 0:02:18.6]} 17... Be6 {[%clk 0:02:31.3]} 18. Nd5 {[%clk 0:02:11]}
18... Nd4 {[%clk 0:02:23.8]} 19. Bg4 {[%clk 0:02:06.2]} 19... f5 {[%clk
0:02:04.9]} 20. Bg5 {[%clk 0:02:02.6]} 20... Qd7 {[%clk 0:01:56.3]} 21. Ne7+
{[%clk 0:01:58.9]} 21... Kf7 {[%clk 0:01:55.3]} 22. Nxg6 {[%clk 0:01:53]} 22...
Rh8 {[%clk 0:01:37.9]} 23. Bh5 {[%clk 0:01:39.4]} 23... Kg8 {[%clk 0:01:27]} 24.
Nxh8 {[%clk 0:01:34.5]} 24... Bxh8 {[%clk 0:01:25.3]} 25. Bg6 {[%clk 0:01:18.8]}
25... Rf8 {[%clk 0:01:15.1]} 26. Be7 {[%clk 0:01:15.4]} 26... Rf7 {[%clk
0:01:04]} 27. Bxf7+ {[%clk 0:01:13.7]} 27... Bxf7 {[%clk 0:01:02.4]} 28. Qg5+
{[%clk 0:01:01.4]} 28... Bg7 {[%clk 0:00:54.6]} 29. Bf6 {[%clk 0:00:55.3]} 29...
Bxc4 {[%clk 0:00:52]} 30. Bxd4 {[%clk 0:00:44.7]} 30... Bxf1 {[%clk 0:00:47.7]}
31. Qxg7+ {[%clk 0:00:38.8]} 31... Qxg7 {[%clk 0:00:46.5]} 32. Bxg7 {[%clk
0:00:39.4]} 32... Bd3 {[%clk 0:00:43.3]} 33. Bc3 {[%clk 0:00:35.5]} 33... fxe4
{[%clk 0:00:42.6]} 34. Kf2 {[%clk 0:00:34.2]} 34... d5 {[%clk 0:00:42.7]} 35.
Ke3 {[%clk 0:00:34.4]} 35... b5 {[%clk 0:00:40.2]} 36. a3 {[%clk 0:00:33.3]}
36... d4+ {[%clk 0:00:38.7]} 37. Bxd4 {[%clk 0:00:32.3]} 37... cxd4+ {[%clk
0:00:38.9]} 38. Kxd4 {[%clk 0:00:33]} 38... Kf7 {[%clk 0:00:38.9]} 39. Rd1
{[%clk 0:00:31.5]} 39... Bc2 {[%clk 0:00:36.2]} 40. Re1 {[%clk 0:00:31.1]} 40...
Kf6 {[%clk 0:00:34]} 41. Rxe4 {[%clk 0:00:31.5]} 41... Kf5 {[%clk 0:00:33.8]}
42. Re3 {[%clk 0:00:31.4]} 42... Kf4 {[%clk 0:00:32]} 43. Rf3+ {[%clk
0:00:31.3]} 43... Kg4 {[%clk 0:00:31.8]} 44. Rc3 {[%clk 0:00:30.5]} 44... Bh7
{[%clk 0:00:28]} 45. Kc5 {[%clk 0:00:30.1]} 45... Be4 {[%clk 0:00:26.2]} 46. Kb6
{[%clk 0:00:29.2]} 46... Kf4 {[%clk 0:00:23.8]} 47. g3+ {[%clk 0:00:27.7]} 47...
Ke5 {[%clk 0:00:23.3]} 48. Kxa6 {[%clk 0:00:28.1]} 48... b4 {[%clk 0:00:22.6]}
49. axb4 {[%clk 0:00:27.3]} 49... Kd4 {[%clk 0:00:23.5]} 50. b5 {[%clk
0:00:27.4]} 1-0

[Event "*** SCC Grand Prix: Titled Tuesday Blitz"]
[Site "Chess.com"]
[Date "2020.08.25"]
[Round "10"]
[White "PawnEatingZombie"]
[Black "Panterov"]
[Result "0-1"]
[WhiteElo "2208"]
[BlackElo "2021"]
[TimeControl "180+1"]
[EndTime "11:59:48 PDT"]
[Termination "Panterov won on time"]

1. d4 {[%clk 0:03:00.9]} 1... d5 {[%clk 0:02:26.7]} 2. c4 {[%clk 0:02:59]} 2...
c6 {[%clk 0:02:27.6]} 3. Nc3 {[%clk 0:02:58.5]} 3... Nf6 {[%clk 0:02:26.4]} 4.
e3 {[%clk 0:02:58.4]} 4... e6 {[%clk 0:02:26.6]} 5. Nf3 {[%clk 0:02:58.5]} 5...
Be7 {[%clk 0:02:26.7]} 6. Qc2 {[%clk 0:02:59]} 6... O-O {[%clk 0:02:26.7]} 7.
Bd3 {[%clk 0:02:57.9]} 7... dxc4 {[%clk 0:02:26.5]} 8. Bxc4 {[%clk 0:02:58.1]}
8... b5 {[%clk 0:02:27.4]} 9. Be2 {[%clk 0:02:58.3]} 9... a6 {[%clk 0:02:27.7]}
10. O-O {[%clk 0:02:58]} 10... c5 {[%clk 0:02:28]} 11. dxc5 {[%clk 0:02:48.8]}
11... Bxc5 {[%clk 0:02:27.5]} 12. Nxb5 {[%clk 0:02:43]} 12... Bxe3 {[%clk
0:02:24.4]} 13. Bxe3 {[%clk 0:02:39.1]} 13... axb5 {[%clk 0:02:25.3]} 14. Bxb5
{[%clk 0:02:38.2]} 14... Ba6 {[%clk 0:02:25.2]} 15. Rfd1 {[%clk 0:02:28.4]}
15... Qa5 {[%clk 0:02:24.1]} 16. Bxa6 {[%clk 0:02:14.9]} 16... Nxa6 {[%clk
0:02:25]} 17. Bd4 {[%clk 0:02:00.8]} 17... Rac8 {[%clk 0:02:10.9]} 18. Qe2
{[%clk 0:01:57.2]} 18... Nd5 {[%clk 0:02:07]} 19. a3 {[%clk 0:01:49.3]} 19...
Nac7 {[%clk 0:01:59.5]} 20. b4 {[%clk 0:01:44.3]} 20... Qa8 {[%clk 0:01:58.2]}
21. Ne5 {[%clk 0:01:22.5]} 21... Nf4 {[%clk 0:01:47.9]} 22. Qf3 {[%clk
0:01:15.8]} 22... Ncd5 {[%clk 0:01:47.5]} 23. g3 {[%clk 0:01:09.4]} 23... Nh3+
{[%clk 0:01:37.7]} 24. Kf1 {[%clk 0:01:02.2]} 24... Ng5 {[%clk 0:01:32.5]} 25.
Qg2 {[%clk 0:00:55.3]} 25... Qa6+ {[%clk 0:01:19.6]} 26. Kg1 {[%clk 0:00:53.3]}
26... Nc3 {[%clk 0:01:19.6]} 27. Bxc3 {[%clk 0:00:35.9]} 27... Rxc3 {[%clk
0:01:20.5]} 28. Nd7 {[%clk 0:00:27.9]} 28... Rfc8 {[%clk 0:01:06]} 29. a4 {[%clk
0:00:22.9]} 29... Nf3+ {[%clk 0:01:03.1]} 30. Kh1 {[%clk 0:00:22.1]} 30... Qe2
{[%clk 0:00:56.3]} 31. b5 {[%clk 0:00:19.1]} 31... Ra3 {[%clk 0:00:46.2]} 32.
Rab1 {[%clk 0:00:14.5]} 32... Rxa4 {[%clk 0:00:45.7]} 33. b6 {[%clk 0:00:12.1]}
33... Rb4 {[%clk 0:00:42.9]} 34. Qf1 {[%clk 0:00:06]} 34... Qe4 {[%clk
0:00:38.2]} 35. Rxb4 {[%clk 0:00:05.4]} 35... Qxb4 {[%clk 0:00:36.3]} 36. Qg2
{[%clk 0:00:02.8]} 36... Qe4 {[%clk 0:00:29.3]} 37. h3 {[%clk 0:00:01.8]} 37...
Qe2 {[%clk 0:00:24.5]} 38. Qf1 {[%clk 0:00:01.1]} 38... Qe4 {[%clk 0:00:22.1]}
39. Qg2 {[%clk 0:00:01.7]} 39... Qb7 {[%clk 0:00:18.8]} 0-1

[Event "*** SCC Grand Prix: Titled Tuesday Blitz"]
[Site "Chess.com"]
[Date "2020.08.25"]
[Round "10"]
[White "MYMChessAcademy"]
[Black "Azoulas1"]
[Result "0-1"]
[WhiteElo "2096"]
[BlackElo "1980"]
[TimeControl "180+1"]
[EndTime "11:59:49 PDT"]
[Termination "Azoulas1 won by checkmate"]

1. e4 {[%clk 0:03:00.9]} 1... c5 {[%clk 0:02:59.5]} 2. Nf3 {[%clk 0:02:59.1]}
2... e6 {[%clk 0:02:59.1]} 3. d4 {[%clk 0:02:58]} 3... cxd4 {[%clk 0:02:59]} 4.
Nxd4 {[%clk 0:02:57.7]} 4... Nf6 {[%clk 0:02:59.2]} 5. Nc3 {[%clk 0:02:57.4]}
5... d6 {[%clk 0:02:59.4]} 6. Be2 {[%clk 0:02:57.3]} 6... a6 {[%clk 0:02:54.7]}
7. Be3 {[%clk 0:02:51.8]} 7... Be7 {[%clk 0:02:54.3]} 8. g4 {[%clk 0:02:51.1]}
8... Qc7 {[%clk 0:02:50.8]} 9. f3 {[%clk 0:02:50.6]} 9... b5 {[%clk 0:02:49.2]}
10. g5 {[%clk 0:02:47.6]} 10... Nfd7 {[%clk 0:02:47.2]} 11. h4 {[%clk
0:02:46.1]} 11... Bb7 {[%clk 0:02:44.8]} 12. Qd2 {[%clk 0:02:46.3]} 12... Nb6
{[%clk 0:02:43.2]} 13. O-O-O {[%clk 0:02:45.8]} 13... N8d7 {[%clk 0:02:41.8]}
14. h5 {[%clk 0:02:45]} 14... b4 {[%clk 0:02:36.7]} 15. Nb1 {[%clk 0:02:41.2]}
15... d5 {[%clk 0:02:35.9]} 16. Nb3 {[%clk 0:02:19.4]} 16... dxe4 {[%clk
0:02:29.5]} 17. f4 {[%clk 0:02:10.2]} 17... Rc8 {[%clk 0:02:20.4]} 18. g6 {[%clk
0:02:00.7]} 18... Nd5 {[%clk 0:02:19]} 19. Bd4 {[%clk 0:01:48.8]} 19... e3
{[%clk 0:02:08.7]} 20. gxf7+ {[%clk 0:01:45.9]} 20... Kxf7 {[%clk 0:02:07.2]}
21. Qd3 {[%clk 0:01:39]} 21... Nxf4 {[%clk 0:02:01]} 22. Rdf1 {[%clk 0:01:38.4]}
22... Ke8 {[%clk 0:01:59.6]} 23. Qd1 {[%clk 0:01:22.8]} 23... Be4 {[%clk
0:01:47.7]} 24. c3 {[%clk 0:01:10.8]} 24... Bxh1 {[%clk 0:01:34.2]} 25. Rxh1
{[%clk 0:01:08.2]} 25... Nc5 {[%clk 0:01:28.3]} 26. Bxg7 {[%clk 0:00:49.4]}
26... Nxb3+ {[%clk 0:01:16.2]} 27. axb3 {[%clk 0:00:50.3]} 27... Rg8 {[%clk
0:01:14.1]} 28. h6 {[%clk 0:00:50.1]} 28... Qc6 {[%clk 0:00:57.4]} 29. Bh5+
{[%clk 0:00:49]} 29... Nxh5 {[%clk 0:00:56.5]} 30. Qxh5+ {[%clk 0:00:46.2]}
30... Kd7 {[%clk 0:00:56.5]} 31. Be5 {[%clk 0:00:35.2]} 31... Rcf8 {[%clk
0:00:46.7]} 32. Rd1+ {[%clk 0:00:10.1]} 32... Kc8 {[%clk 0:00:44.4]} 33. Qe2
{[%clk 0:00:09.1]} 33... Bc5 {[%clk 0:00:33.2]} 34. c4 {[%clk 0:00:08]} 34...
Rf2 {[%clk 0:00:27.6]} 35. Qd3 {[%clk 0:00:07.2]} 35... e2 {[%clk 0:00:25.6]}
36. Re1 {[%clk 0:00:06.4]} 36... Rf1 {[%clk 0:00:21.3]} 37. Kd2 {[%clk
0:00:06.6]} 37... Rxe1 {[%clk 0:00:14.3]} 38. Kxe1 {[%clk 0:00:07.5]} 38... Rg1+
{[%clk 0:00:13.3]} 39. Kxe2 {[%clk 0:00:08]} 39... Qg2# {[%clk 0:00:12.5]} 0-1